[Event "World Junior U20 Girls 2018"]
[Site "Gebze"]
[Date "2018.09.05"]
[Round "1"]
[White "Georgescu, Lena"]
[Black "Nass, Sara"]
[Result "1/2-1/2"]
[ECO "B15"]
[WhiteElo "2195"]
[BlackElo "1888"]
[Annotator "NA"]
[PlyCount "73"]
[EventDate "2018.09.05"]
[EventType "swiss"]
[EventCountry "TUR"]
[SourceTitle "playchess.com"]
[Source "ChessBase"]
[SourceQuality "1"]
[TimeControl "40/5400+30:1800+30"]

1. e4 c6 2. Nc3 d5 3. Nf3 dxe4 4. Nxe4 Nf6 5. Nxf6+ exf6 6. d4 Bd6 7. Be2 O-O 8. O-O Re8 9. c4 Nd7 10. Be3 f5 11. d5 cxd5 12. Qxd5 Nf6 13. Qd1 Qc7 14. Bd4 Rd8 {[%emt 1:11:00]} 15. h3 {[%emt 1:02:30]} Bc5 {[%emt 0:13:09]} 16. Be5 {[%emt 0:01:30]} Qb6 {[%emt 0:01:06]} 17. Qb3 {[%emt 0:04:30]} Qxb3 {[%emt 0:05:13]} 18. axb3 {[%emt 0:00:00]} Ne4 {[%emt 0:00:40]} 19. Bc3 {[%emt 0:02:00]} Be6 {[%emt 0:02:45]} 20. b4 {[%emt 0:01:30]} Ng3 {[%emt 0:02:08]} 21. Rfe1 {[%emt 0:13:35]} Nxe2+ {[%emt 0:00:43]} 22. Rxe2 {[%emt 0:00:30]} Bxc4 {[%emt 0:00:00]} 23. Re5 {[%emt 0:00:25]} Bd6 {[%emt 0:02:24]} 24. Rxf5 {[%emt 0:00:20]} g6 {[%emt 0:00:29]} 25. Rfa5 {[%emt 0:01:24]} a6 {[%emt 0:00:56]} 26. Nd2 {[%emt 0:01:47]} Bb5 {[%emt 0:00:23]} 27. Ne4 {[%emt 0:01:10]} Be7 {[%emt 0:00:53]} 28. Nf6+ {[%emt 0:03:36]} Bxf6 {[%emt 0:00:15]} 29. Bxf6 {[%emt 0:00:00]} Re8 {[%emt 0:00:22]} 30. R5a3 {[%emt 0:01:15]} Re4 {[%emt 0:00:53]} 31. Bc3 {[%emt 0:04:34]} Rd8 {[%emt 0:00:32]} 32. Rc1 {[%emt 0:00:38]} Bc6 {[%emt 0:01:17]} 33. Raa1 {[%emt 0:00:19]} Kf8 {[%emt 0:00:29]} 34. Rd1 {[%emt 0:00:37]} Rxd1+ {[%emt 0:00:18]} 35. Rxd1 {[%emt 0:00:30]} Ke7 {[%emt 0:00:10]} 36. Re1 {[%emt 0:00:56]} Rxe1+ {[%emt 0:00:30]} 37. Bxe1 {[%emt 0:00:00]} 1/2-1/2

[Event "World Junior U20 Girls 2018"]
[Site "Gebze"]
[Date "2018.09.05"]
[Round "1"]
[White "Varshini, V."]
[Black "Nassr, Lina"]
[Result "1-0"]
[ECO "B85"]
[WhiteElo "2173"]
[BlackElo "1854"]
[Annotator "NA"]
[PlyCount "81"]
[EventDate "2018.09.05"]
[EventType "swiss"]
[EventCountry "TUR"]
[SourceTitle "playchess.com"]
[Source "ChessBase"]
[SourceQuality "1"]
[TimeControl "40/5400+30:1800+30"]

1. e4 c5 2. Nc3 e6 3. Nge2 Nc6 4. d4 cxd4 5. Nxd4 Nf6 6. a3 Be7 7. Be2 a6 8. O-O O-O 9. Be3 Qc7 10. Nb3 b5 11. f4 d6 12. Bf3 Bb7 13. g4 Nd7 14. Bg2 Nb6 15. g5 Nc4 16. Bc1 Qb6+ 17. Kh1 {[%emt 1:05:30]} b4 {[%emt 1:01:30]} 18. axb4 {[%emt 0:00:30]} Nxb4 {[%emt 0:00:30]} 19. Nd4 {[%emt 0:03:30]} Nc6 {[%emt 0:13:30]} 20. Nxc6 {[%emt 0:08:30]} Bxc6 {[%emt 0:02:30]} 21. Qe2 {[%emt 0:03:40]} Na5 {[%emt 0:04:41]} 22. b3 {[%emt 0:06:33]} Nb7 {[%emt 0:02:15]} 23. Na4 {[%emt 0:06:55]} Qc7 24. Bb2 {[%emt 0:01:42]} f6 {[%emt 0:09:29]} 25. Qc4 {[%emt 0:02:54]} Nd8 {[%emt 0:01:41]} 26. f5 {[%emt 0:00:38]} Qb7 {[%emt 0:01:59]} 27. Nc3 {[%emt 0:01:24]} Kh8 {[%emt 0:02:37]} 28. fxe6 {[%emt 0:00:28]} f5 {[%emt 0:01:42]} 29. Rae1 {[%emt 0:01:09]} Bxg5 {[%emt 0:00:58]} 30. Re2 {[%emt 0:00:35]} Rc8 {[%emt 0:00:54]} 31. Qd3 {[%emt 0:00:54]} Nxe6 {[%emt 0:00:22]} 32. Qxd6 {[%emt 0:00:21]} Qd7 {[%emt 0:00:46]} 33. Qxd7 {[%emt 0:00:53]} Bxd7 {[%emt 0:00:30]} 34. exf5 {[%emt 0:00:00]} Nf4 {[%emt 0:00:00]} 35. Rd2 {[%emt 0:00:49]} Bxf5 {[%emt 0:00:46]} 36. Rdf2 {[%emt 0:00:08]} Nxg2 {[%emt 0:00:36]} 37. Rxf5 {[%emt 0:00:36]} Rxf5 {[%emt 0:01:02]} 38. Rxf5 {[%emt 0:00:01]} Bf6 {[%emt 0:00:12]} 39. Kxg2 {[%emt 0:00:05]} h6 {[%emt 0:00:49]} 40. Rf3 {[%emt 0:00:00]} Rc5 {[%emt 0:00:00]} 41. Kf1 {[%emt 0:01:45]} 1-0

[Event "World Junior U20 Girls 2018"]
[Site "Gebze"]
[Date "2018.09.05"]
[Round "1"]
[White "Song, Yuxin"]
[Black "Sade, Defne"]
[Result "1-0"]
[ECO "D79"]
[WhiteElo "2156"]
[BlackElo "1826"]
[Annotator "NA"]
[PlyCount "77"]
[EventDate "2018.09.05"]
[EventType "swiss"]
[EventCountry "TUR"]
[SourceTitle "playchess.com"]
[Source "ChessBase"]
[SourceQuality "1"]
[TimeControl "40/5400+30:1800+30"]

1. d4 d5 2. c4 c6 3. Nf3 Nf6 4. g3 g6 5. Bg2 Bg7 6. O-O O-O 7. cxd5 cxd5 8. Nc3 Nc6 9. Ne5 Bf5 10. Nxc6 bxc6 11. Na4 Ne4 12. Be3 Re8 13. Rc1 Rc8 14. b3 Qa5 15. f3 Nd6 16. Nc5 {[%emt 0:57:00]} e5 {[%emt 1:10:00]} 17. Bd2 {[%emt 0:00:30]} Qb6 {[%emt 0:02:30]} 18. e4 {[%emt 0:05:30]} Be6 {[%emt 0:04:30]} 19. dxe5 {[%emt 0:03:30]} Bxe5 {[%emt 0:00:30]} 20. Be3 {[%emt 0:00:30]} Nb5 {[%emt 0:07:03]} 21. Qd2 {[%emt 0:01:30]} d4 {[%emt 0:00:30]} 22. Bf2 {[%emt 0:02:30]} Rcd8 {[%emt 0:07:25]} 23. Qe2 {[%emt 0:03:30]} Qb8 {[%emt 0:06:29]} 24. f4 {[%emt 0:01:30]} Bg7 {[%emt 0:00:55]} 25. Na4 {[%emt 0:05:30]} Rc8 {[%emt 0:01:27]} 26. Qd3 {[%emt 0:01:30]} Red8 {[%emt 0:00:58]} 27. Be1 {[%emt 0:00:30]} Bf8 {[%emt 0:00:33]} 28. Ba5 {[%emt 0:00:30]} Rd7 {[%emt 0:00:18]} 29. Nc5 {[%emt 0:06:05]} Bxc5 {[%emt 0:00:41]} 30. Rxc5 {[%emt 0:00:01]} Nd6 {[%emt 0:00:26]} 31. Bd2 {[%emt 0:03:08]} Nb7 {[%emt 0:00:30]} 32. Rc2 {[%emt 0:00:30]} c5 {[%emt 0:00:30]} 33. f5 {[%emt 0:01:59]} gxf5 {[%emt 0:00:42]} 34. exf5 {[%emt 0:00:00]} Bd5 {[%emt 0:00:00]} 35. f6 {[%emt 0:01:31]} Qe5 {[%emt 0:00:25]} 36. Rf5 {[%emt 0:01:24]} Qe6 {[%emt 0:00:14]} 37. Bh3 {[%emt 0:00:00]} Kf8 {[%emt 0:01:33]} 38. Bh6+ {[%emt 0:00:00]} Ke8 {[%emt 0:00:08]} 39. Re2 {[%emt 0:00:00]} 1-0

[Event "World Junior U20 Girls 2018"]
[Site "Gebze"]
[Date "2018.09.05"]
[Round "1"]
[White "Ivana Maria, Furtado"]
[Black "Catal, Uktenur"]
[Result "1-0"]
[ECO "D32"]
[WhiteElo "2144"]
[BlackElo "1809"]
[Annotator "NA"]
[PlyCount "49"]
[EventDate "2018.09.05"]
[EventType "swiss"]
[EventCountry "TUR"]
[SourceTitle "playchess.com"]
[Source "ChessBase"]
[SourceQuality "1"]
[TimeControl "40/5400+30:1800+30"]

1. Nf3 Nf6 2. c4 e6 3. Nc3 d5 4. d4 c5 5. e3 Nc6 6. cxd5 exd5 7. Be2 Bd6 8. O-O O-O 9. Nb5 Be7 10. dxc5 Bxc5 11. b3 a6 12. Nbd4 Ne4 13. Bb2 Re8 14. Rc1 Qd6 15. Nxc6 bxc6 16. Qc2 Bb7 17. Nd4 Bxd4 18. Bxd4 Qe6 19. Bd3 g6 20. Bb2 Rf8 {[%emt 1:15:00]} 21. f3 {[%emt 0:55:30]} Nd6 {[%emt 0:01:30]} 22. Rce1 {[%emt 0:01:30]} f6 {[%emt 0:13:17]} 23. e4 {[%emt 0:02:30]} Qf7 {[%emt 0:02:33]} 24. Qc5 {[%emt 0:01:30]} Nb5 {[%emt 0:01:40]} 25. exd5 {[%emt 0:03:30]} 1-0

[Event "World Junior U20 Girls 2018"]
[Site "Gebze"]
[Date "2018.09.05"]
[Round "1"]
[White "Urh, Zala"]
[Black "Can, Isil"]
[Result "1/2-1/2"]
[ECO "D46"]
[WhiteElo "2128"]
[BlackElo "1798"]
[Annotator "NA"]
[PlyCount "117"]
[EventDate "2018.09.05"]
[EventType "swiss"]
[EventCountry "TUR"]
[SourceTitle "playchess.com"]
[Source "ChessBase"]
[SourceQuality "1"]
[TimeControl "40/5400+30:1800+30"]

1. d4 d5 2. c4 c6 3. Nf3 Nf6 4. e3 e6 5. Nbd2 Nbd7 6. Bd3 Bd6 7. O-O O-O 8. e4 dxe4 9. Nxe4 Nxe4 10. Bxe4 Nf6 11. Bc2 c5 12. Qd3 {D46: Semi-Slav: 5 e3 Nbd7 6 Bd3, Black avoids the Meran} h6 13. Rd1 Qc7 14. dxc5 Bxc5 15. b4 Be7 (15... Bxb4 16. Bb2 Qd7 17. Qb3 Qe7 18. Qd3 Qd7 19. Qb3 Qe7 20. Ne5 a5 21. Qd3 Re8 22. Ba4 Rf8 23. Bc2 Re8 24. Ba4 Rf8 25. Bc2 {½-½ (25) Peralta,F (2560)-Obregon,C (2537) Buenos Aires 2015}) 16. Bb2 Rd8 17. Qb3 b6 18. Be5 Qc6 $146 ({Predecessor:} 18... Bd6 19. Qd3 Bb7 20. Bxd6 {1-0 (20) Tolstikh,N (2420)-Plsek,M (2045) Zlin 1996}) 19. Nd4 Qe8 20. a4 Bb7 21. a5 bxa5 22. Rxa5 a6 23. Qb2 Bd6 {[%emt 1:08:30]} 24. Bxd6 {[%emt 0:59:00]} Rxd6 {[%emt 0:00:30]} 25. Ba4 {[%emt 0:00:30]} Bc6 {[%emt 0:02:30]} 26. Nxc6 {[%emt 0:10:30]} Qxc6 {[%emt 0:00:00]} 27. Rxd6 {[%emt 0:06:30]} Qxd6 {[%emt 0:00:00]} 28. c5 {[%emt 0:00:30]} Qc7 {[%emt 0:08:30]} 29. h3 {[%emt 0:04:30]} Nd5 {[%emt 0:02:30]} 30. Qd2 {[%emt 0:15:45]} Rb8 {[%emt 0:07:02]} 31. Rxa6 {[%emt 0:02:07]} Nxb4 {[%emt 0:00:36]} 32. Rd6 {[%emt 0:01:16]} Qxc5 {[%emt 0:01:55]} 33. Rd8+ {[%emt 0:00:36]} Rxd8 {[%emt 0:00:30]} 34. Qxd8+ {[%emt 0:00:00]} Kh7 {[%emt 0:01:17]} 35. Qd7 {[%emt 0:00:51]} Qc1+ {[%emt 0:00:38]} 36. Qd1 {[%emt 0:00:38]} Qxd1+ {[%emt 0:02:16]} 37. Bxd1 {[%emt 0:00:30]} g5 {[%emt 0:02:40]} 38. Kf1 {[%emt 0:01:20]} Kg6 {[%emt 0:00:25]} 39. Ke2 {[%emt 0:00:31]} Kf5 {[%emt 0:01:25]} 40. Kf3 {[%emt 0:01:17]} h5 {[%emt 0:00:00]} 41. Ba4 {[%emt 0:05:09]} h4 {[%emt 0:07:16]} 42. Bb3 {[%emt 0:04:30]} f6 {[%emt 0:02:30]} 43. Ba4 {[%emt 0:00:30]} Nd5 {[%emt 0:07:30]} 44. g3 {[%emt 0:02:30]} hxg3 {[%emt 0:06:34]} 45. fxg3 {[%emt 0:02:30]} Kg6 {[%emt 0:01:38]} 46. Bc2+ {[%emt 0:01:30]} f5 {[%emt 0:03:15]} 47. g4 {[%emt 0:01:13]} Kf6 {[%emt 0:00:33]} 48. gxf5 {[%emt 0:00:30]} exf5 {[%emt 0:00:00]} 49. Kg3 {[%emt 0:02:46]} Ne3 {[%emt 0:00:23]} 50. Bd3 {[%emt 0:00:40]} Ke5 {[%emt 0:01:28]} 51. Kf3 {[%emt 0:00:14]} Nd5 {[%emt 0:00:27]} 52. Be2 {[%emt 0:03:43]} Nf4 {[%emt 0:01:03]} 53. Bf1 {[%emt 0:00:01]} Ng6 {[%emt 0:00:11]} 54. Bd3 {[%emt 0:01:31]} Kf6 {[%emt 0:03:59]} 55. Be2 {[%emt 0:01:29]} Nf4 {[%emt 0:04:45]} 56. Bf1 {[%emt 0:00:39]} Ke5 {[%emt 0:00:02]} 57. Ke3 {[%emt 0:00:49]} Ng6 {[%emt 0:02:05]} 58. Kf2 {[%emt 0:05:55]} f4 {[%emt 0:02:56]} 59. Kf3 $11 {[%emt 0:05:00]} 1/2-1/2

[Event "World Junior U20 Girls 2018"]
[Site "Gebze"]
[Date "2018.09.05"]
[Round "1"]
[White "Santeramo, Alessia"]
[Black "Zairbek kyzy, Begimay"]
[Result "1-0"]
[ECO "B16"]
[WhiteElo "2124"]
[BlackElo "1770"]
[Annotator "NA"]
[PlyCount "52"]
[EventDate "2018.09.05"]
[EventType "swiss"]
[EventCountry "TUR"]
[SourceTitle "playchess.com"]
[Source "ChessBase"]
[SourceQuality "1"]
[TimeControl "40/5400+30:1800+30"]

1. e4 c6 2. d4 d5 3. Nc3 dxe4 4. Nxe4 Nf6 5. Nxf6+ gxf6 6. Nf3 Bg4 7. Be3 e6 8. g3 Nd7 9. Bg2 Bd6 10. O-O Nb6 11. b3 Nd5 12. Bd2 f5 13. Qe1 Qe7 14. c4 Nf6 15. Ne5 Nd7 {[%emt 0:57:30]} 16. Nxd7 {[%emt 1:23:32]} Qxd7 {[%emt 0:00:30]} 17. Bc3 {[%emt 0:00:30]} Rg8 {[%emt 0:00:30]} 18. d5 {[%emt 0:00:30]} f4 {[%emt 0:00:30]} 19. dxc6 {[%emt 0:00:30]} bxc6 {[%emt 0:00:30]} 20. Qe4 {[%emt 0:00:30]} f5 {[%emt 0:00:30]} 21. Qxc6 {[%emt 0:00:30]} Rc8 {[%emt 0:00:30]} 22. Qxd7+ {[%emt 0:00:30]} Kxd7 {[%emt 0:00:30]} 23. f3 {[%emt 0:00:30]} fxg3 {[%emt 0:00:30]} 24. fxg4 {[%emt 0:00:30]} gxh2+ {[%emt 0:00:30]} 25. Kh1 {[%emt 0:00:30]} Rxg4 {[%emt 0:00:30]} 26. Rad1 {[%emt 0:00:30]} Ke7 {[%emt 0:14:30]} 1-0

[Event "World Junior U20 Girls 2018"]
[Site "Gebze"]
[Date "2018.09.05"]
[Round "1"]
[White "Li, Xinyu"]
[Black "Yorgun, Yaren Naz"]
[Result "1/2-1/2"]
[ECO "D36"]
[WhiteElo "2086"]
[BlackElo "1751"]
[Annotator "NA"]
[PlyCount "148"]
[EventDate "2018.09.05"]
[EventType "swiss"]
[EventCountry "TUR"]
[SourceTitle "playchess.com"]
[Source "ChessBase"]
[SourceQuality "1"]
[TimeControl "40/5400+30:1800+30"]

1. d4 d5 2. c4 e6 3. Nc3 Nf6 4. cxd5 exd5 5. Bg5 Nbd7 6. e3 c6 7. Bd3 Be7 8. Nf3 O-O 9. O-O Re8 10. Qc2 Nf8 11. Rab1 Ng6 12. b4 Ne4 13. Bxe7 Qxe7 14. Bxe4 dxe4 15. Nd2 Bf5 16. Ne2 Nf8 17. Qc5 Qd7 18. Rfc1 Bg6 19. Nf4 Ne6 20. Nxe6 Qxe6 21. a4 Red8 {[%emt 1:06:30]} 22. b5 {[%emt 1:01:00]} cxb5 {[%emt 0:00:30]} 23. Qxb5 {[%emt 0:00:00]} b6 {[%emt 0:02:30]} 24. Nb3 {[%emt 0:14:00]} f5 {[%emt 0:09:30]} 25. a5 {[%emt 0:08:42]} Be8 {[%emt 0:06:35]} 26. Qb4 {[%emt 0:00:37]} bxa5 {[%emt 0:02:02]} 27. Qxa5 {[%emt 0:01:30]} Qg6 {[%emt 0:02:23]} 28. Nd2 {[%emt 0:06:11]} f4 {[%emt 0:06:36]} 29. Qe5 {[%emt 0:02:40]} fxe3 {[%emt 0:02:01]} 30. fxe3 {[%emt 0:00:23]} Bf7 {[%emt 0:00:50]} 31. Rc5 {[%emt 0:03:16]} Re8 {[%emt 0:00:37]} 32. Qc7 {[%emt 0:00:30]} Be6 {[%emt 0:02:36]} 33. Qa5 {[%emt 0:02:26]} Rf8 {[%emt 0:03:15]} 34. Qb5 {[%emt 0:03:36]} Qf7 {[%emt 0:00:32]} 35. Rf1 {[%emt 0:01:16]} Qe7 {[%emt 0:00:09]} 36. Re5 {[%emt 0:00:00]} Rxf1+ {[%emt 0:00:25]} 37. Nxf1 {[%emt 0:00:06]} Qf7 {[%emt 0:00:32]} 38. Qc6 {[%emt 0:00:46]} Re8 {[%emt 0:01:23]} 39. Qxe4 {[%emt 0:00:13]} Rf8 {[%emt 0:00:00]} 40. Qf3 {[%emt 0:00:00]} Qc7 {[%emt 0:00:00]} 41. Qd1 {[%emt 0:05:18]} Qf7 {[%emt 0:09:34]} 42. Qe1 {[%emt 0:00:30]} Bc4 {[%emt 0:01:30]} 43. Nd2 {[%emt 0:03:30]} Bd3 {[%emt 0:01:30]} 44. h3 {[%emt 0:02:30]} Qa2 {[%emt 0:01:56]} 45. Nf3 {[%emt 0:07:37]} a6 {[%emt 0:02:26]} 46. e4 {[%emt 0:03:44]} Be2 {[%emt 0:02:38]} 47. Nd2 {[%emt 0:04:58]} Bb5 {[%emt 0:01:17]} 48. Rc5 {[%emt 0:01:43]} Qb2 {[%emt 0:01:35]} 49. Qe3 {[%emt 0:00:42]} Rd8 {[%emt 0:01:11]} 50. d5 {[%emt 0:00:42]} Qa1+ {[%emt 0:00:09]} 51. Kh2 {[%emt 0:01:08]} Qe5+ {[%emt 0:00:05]} 52. Qg3 {[%emt 0:00:14]} Qd4 {[%emt 0:02:38]} 53. Qc3 {[%emt 0:01:12]} Qf2 {[%emt 0:01:31]} 54. Rc7 {[%emt 0:01:04]} Qf8 {[%emt 0:01:32]} 55. Nf3 {[%emt 0:01:08]} a5 {[%emt 0:01:04]} 56. Rc5 {[%emt 0:01:34]} Rb8 {[%emt 0:01:39]} 57. e5 {[%emt 0:00:49]} a4 {[%emt 0:01:37]} 58. d6 {[%emt 0:00:30]} Bd7 {[%emt 0:00:30]} 59. Qc4+ {[%emt 0:00:30]} Kh8 {[%emt 0:00:30]} 60. Rc7 {[%emt 0:01:00]} Bb5 {[%emt 0:02:36]} 61. Qe4 {[%emt 0:00:18]} a3 {[%emt 0:00:30]} 62. Ra7 {[%emt 0:01:03]} Bc6 {[%emt 0:00:26]} 63. Qe3 {[%emt 0:01:12]} Ra8 {[%emt 0:00:48]} 64. Qxa3 {[%emt 0:00:48]} Rxa7 {[%emt 0:03:12]} 65. Qxa7 {[%emt 0:00:08]} Bxf3 {[%emt 0:00:00]} 66. Qd4 {[%emt 0:01:17]} Bc6 {[%emt 0:00:35]} 67. e6 {[%emt 0:00:16]} Qf1 {[%emt 0:00:25]} 68. Qd2 {[%emt 0:00:48]} Bxg2 {[%emt 0:01:04]} 69. d7 {[%emt 0:01:00]} Qh1+ {[%emt 0:00:30]} 70. Kg3 {[%emt 0:00:30]} Qxh3+ {[%emt 0:00:00]} 71. Kf2 {[%emt 0:00:00]} Qf3+ {[%emt 0:00:02]} 72. Kg1 {[%emt 0:00:00]} Qf1+ {[%emt 0:00:30]} 73. Kh2 {[%emt 0:00:13]} Qh1+ {[%emt 0:00:30]} 74. Kg3 {[%emt 0:00:00]} Qh3+ {[%emt 0:00:00]} 1/2-1/2

[Event "World Junior U20 Girls 2018"]
[Site "Gebze"]
[Date "2018.09.05"]
[Round "1"]
[White "Sankova, Stella"]
[Black "Gur, Tuba"]
[Result "1-0"]
[ECO "B23"]
[WhiteElo "2081"]
[BlackElo "1724"]
[Annotator "NA"]
[PlyCount "62"]
[EventDate "2018.09.05"]
[EventType "swiss"]
[EventCountry "TUR"]
[SourceTitle "playchess.com"]
[Source "ChessBase"]
[SourceQuality "1"]
[TimeControl "40/5400+30:1800+30"]

1. e4 c5 2. Nc3 e6 3. f4 b6 4. Nf3 Bb7 5. g3 Nf6 6. d3 d6 7. Bg2 Nbd7 8. O-O Qc7 9. a4 a6 10. Bd2 Be7 11. Qe1 O-O 12. h3 Rfe8 13. g4 Nf8 14. Qg3 d5 15. e5 N6d7 16. Rae1 f6 {[%emt 1:18:00]} 17. h4 {[%emt 0:48:30]} fxe5 {[%emt 0:00:30]} 18. fxe5 {[%emt 0:00:30]} d4 {[%emt 0:01:14]} 19. Ne4 {[%emt 0:03:30]} Bd5 {[%emt 0:05:22]} 20. h5 {[%emt 0:07:30]} b5 {[%emt 0:04:36]} 21. axb5 {[%emt 0:03:30]} axb5 {[%emt 0:00:30]} 22. Nfg5 {[%emt 0:04:30]} h6 {[%emt 0:03:16]} 23. Nf7 {[%emt 0:02:30]} Nh7 {[%emt 0:01:55]} 24. g5 {[%emt 0:09:30]} hxg5 {[%emt 0:02:27]} 25. Bxg5 {[%emt 0:02:30]} Nxg5 {[%emt 0:01:19]} 26. Nexg5 {[%emt 0:00:30]} Nf6 {[%emt 0:01:40]} 27. Bxd5 {[%emt 0:03:08]} exd5 {[%emt 0:00:52]} 28. Ne6 {[%emt 0:03:17]} Nxh5 {[%emt 0:00:59]} 29. Qg6 {[%emt 0:01:06]} Qd7 {[%emt 0:00:38]} 30. Qxh5 {[%emt 0:00:17]} Bf6 {[%emt 0:00:37]} 31. Rxf6 {[%emt 0:03:41]} Rxe6 {[%emt 0:00:30]} 1-0

[Event "World Junior U20 Girls 2018"]
[Site "Gebze"]
[Date "2018.09.05"]
[Round "1"]
[White "Bai, Xue"]
[Black "Rousseau, Christilla"]
[Result "1-0"]
[ECO "C14"]
[WhiteElo "2073"]
[BlackElo "1677"]
[Annotator "NA"]
[PlyCount "51"]
[EventDate "2018.09.05"]
[EventType "swiss"]
[EventCountry "TUR"]
[SourceTitle "playchess.com"]
[Source "ChessBase"]
[SourceQuality "1"]
[TimeControl "40/5400+30:1800+30"]

1. e4 e6 2. d4 d5 3. Nc3 Nf6 4. Bg5 Be7 5. e5 Nfd7 6. Bxe7 Qxe7 7. f4 a6 8. Qg4 f5 9. exf6 Nxf6 10. Qg5 Nc6 11. Nf3 Bd7 12. Bd3 O-O-O 13. O-O-O h6 14. Qg6 Be8 15. Qg3 Bh5 16. Bg6 Bxg6 17. Qxg6 Kb8 18. Rhe1 Rdf8 {[%emt 1:33:48]} 19. f5 Ne4 20. Nxe4 dxe4 21. Rxe4 Rf6 22. Qg3 Rxf5 23. Rde1 Qd7 24. Rxe6 Nxd4 25. Re7 Qa4 26. Qxc7+ 1-0

[Event "World Junior U20 Girls 2018"]
[Site "Gebze"]
[Date "2018.09.05"]
[Round "1"]
[White "Li, Yunshan"]
[Black "Anandpara Jayendra Saloni"]
[Result "1-0"]
[ECO "D33"]
[WhiteElo "2060"]
[BlackElo "1326"]
[Annotator "NA"]
[PlyCount "86"]
[EventDate "2018.09.05"]
[EventType "swiss"]
[EventCountry "TUR"]
[SourceTitle "playchess.com"]
[Source "ChessBase"]
[SourceQuality "1"]
[TimeControl "40/5400+30:1800+30"]

1. d4 d5 2. c4 e6 3. Nf3 Nf6 4. g3 c5 5. cxd5 exd5 6. Nc3 h6 7. Bg2 Nc6 8. O-O Be6 9. b3 Be7 10. Bb2 cxd4 11. Nxd4 Qd7 12. Rc1 Rc8 13. Nxc6 bxc6 14. Na4 Qd8 15. Bd4 {[%emt 0:18:30]} Qa5 16. Bc5 Bxc5 17. Rxc5 Qb4 18. Qd3 O-O 19. Rfc1 Qb7 20. Qc2 Bd7 21. Rc3 Qa8 22. Nc5 Rfe8 23. Nxd7 Nxd7 24. Bxd5 Nb8 25. Bf3 Qb7 26. e3 Red8 27. Bxc6 Nxc6 28. Rxc6 Rxc6 29. Qxc6 Qxc6 30. Rxc6 Rd2 31. Rc8+ Kh7 32. Rc7 Rxa2 33. Rxf7 a5 34. Ra7 Kg6 35. b4 a4 36. b5 a3 37. b6 Rb2 38. Rxa3 Rxb6 39. Kg2 Rf6 40. g4 Re6 41. f4 Re7 42. Kf3 h5 43. Ra6+ Kh7 1-0

[Event "World Junior U20 Girls 2018"]
[Site "Gebze"]
[Date "2018.09.05"]
[Round "1"]
[White "Malatsilava, Volha"]
[Black "Tsolakidou, Stavroula"]
[Result "0-1"]
[ECO "B94"]
[WhiteElo "2040"]
[BlackElo "2393"]
[Annotator "NA"]
[PlyCount "86"]
[EventDate "2018.09.05"]
[EventType "swiss"]
[EventCountry "TUR"]
[SourceTitle "playchess.com"]
[Source "ChessBase"]
[SourceQuality "1"]
[TimeControl "40/5400+30:1800+30"]

1. e4 c5 2. Nf3 d6 3. d4 cxd4 4. Nxd4 Nf6 5. Nc3 a6 6. Bg5 Nbd7 7. Qe2 {[%emt 0:01:30]} g6 {[%emt 0:02:30]} 8. f4 {[%emt 0:04:30]} Bg7 {[%emt 0:02:30]} 9. O-O-O {[%emt 0:01:30]} O-O {[%emt 0:01:30]} 10. e5 {[%emt 0:13:30]} dxe5 {[%emt 0:02:30]} 11. fxe5 {[%emt 0:03:30]} Qa5 {[%emt 0:00:00]} 12. Nf3 {[%emt 0:01:30]} Ng4 {[%emt 0:00:00]} 13. Rd5 {[%emt 0:13:30]} b5 {[%emt 0:20:30]} 14. h3 {[%emt 0:05:30]} Nh6 {[%emt 0:02:30]} 15. g4 {[%emt 0:20:30]} f6 {[%emt 0:08:30]} 16. exf6 {[%emt 0:06:30]} exf6 {[%emt 0:05:30]} 17. Bxh6 {[%emt 0:04:30]} Bxh6+ {[%emt 0:02:30]} 18. Kb1 {[%emt 0:04:42]} Nb6 {[%emt 0:07:30]} 19. Rd1 {[%emt 0:01:07]} Bb7 {[%emt 0:10:30]} 20. Qe6+ {[%emt 0:02:08]} Kh8 {[%emt 0:01:30]} 21. Bg2 {[%emt 0:00:05]} Rae8 {[%emt 0:01:30]} 22. Qb3 {[%emt 0:04:17]} b4 {[%emt 0:06:30]} 23. Rd6 {[%emt 0:02:02]} Nc8 {[%emt 0:02:30]} 24. Rd4 {[%emt 0:00:45]} Bxf3 {[%emt 0:01:30]} 25. Bxf3 {[%emt 0:00:36]} bxc3 {[%emt 0:00:00]} 26. h4 {[%emt 0:01:05]} Na7 {[%emt 0:03:26]} 27. Rd5 {[%emt 0:01:49]} Qc7 {[%emt 0:02:39]} 28. h5 {[%emt 0:02:19]} Rb8 {[%emt 0:07:25]} 29. Qa4 {[%emt 0:00:05]} Qg3 {[%emt 0:05:07]} 30. Be4 {[%emt 0:01:09]} Rxb2+ {[%emt 0:02:24]} 31. Ka1 {[%emt 0:00:05]} Rfb8 {[%emt 0:00:08]} 32. Rdd1 {[%emt 0:00:31]} Qc7 {[%emt 0:02:31]} 33. hxg6 {[%emt 0:00:27]} Qg7 {[%emt 0:00:33]} 34. Rd7 {[%emt 0:00:27]} Nb5 {[%emt 0:02:09]} 35. Rxg7 {[%emt 0:00:44]} Kxg7 {[%emt 0:00:03]} 36. gxh7 {[%emt 0:00:17]} Kh8 {[%emt 0:01:09]} 37. Qxa6 {[%emt 0:00:15]} Bg5 {[%emt 0:00:00]} 38. Qa5 {[%emt 0:01:05]} Bf4 {[%emt 0:00:43]} 39. Rd1 {[%emt 0:01:04]} Nd4 {[%emt 0:00:36]} 40. Qa4 {[%emt 0:00:00]} Be5 {[%emt 0:00:00]} 41. Qd7 {[%emt 0:10:56]} Rxc2 {[%emt 0:07:37]} 42. g5 {[%emt 0:20:33]} Rc1+ {[%emt 0:00:30]} 43. Rxc1 {[%emt 0:00:38]} c2 {[%emt 0:00:30]} 0-1